{"text_format":"1","workbook":"xlsx","n_sheets":1,"sheets":["カデットW"],"not_rendered":{"charts":0,"images":0,"macros":0,"external_links":0,"defined_names":1,"comments":0,"pivot_tables":0},"unopened":[],"bounds":{"document_bytes":16777216,"sheet_cells":100000,"rows_first":2000,"rows_last":500,"rows_between":2000,"halvings":0,"cell_chars":16384,"cell_head_chars":4096},"cells_cut":0,"cells_raw":0,"read":"whole","date_system":"1900"}

{"sheet":"カデットW","index":0,"n_rows":38,"n_cols":54,"rows_kept":38,"cut":false,"hidden":false,"merged":[[34,3,35,12],[37,34,37,35],[0,23,1,37],[26,1,26,20],[26,22,26,26],[26,28,26,35],[28,2,28,36],[29,2,29,36],[30,2,30,36],[24,27,24,32],[24,34,24,35],[25,3,25,14],[25,15,25,17],[25,18,25,20],[25,21,25,22],[25,24,25,25],[25,27,25,32],[25,34,25,35],[24,1,25,2],[24,3,24,14],[24,15,24,17],[24,18,24,20],[24,21,24,22],[24,24,24,25],[20,18,20,20],[20,21,20,22],[20,24,20,25],[22,27,22,32],[22,34,22,35],[23,3,23,14],[23,15,23,17],[23,18,23,20],[23,21,23,22],[23,24,23,25],[23,27,23,32],[23,34,23,35],[19,15,19,17],[19,18,19,20],[19,21,19,22],[19,24,19,25],[19,27,19,32],[19,34,19,35],[22,1,23,2],[22,3,22,14],[22,15,22,17],[22,18,22,20],[22,21,22,22],[22,24,22,25],[20,27,20,32],[20,34,20,35],[21,3,21,14],[21,15,21,17],[21,18,21,20],[21,21,21,22],[21,24,21,25],[21,27,21,32],[21,34,21,35],[20,1,21,2],[20,3,20,14],[20,15,20,17],[18,1,19,2],[18,3,18,14],[18,15,18,17],[18,18,18,20],[18,21,18,22],[18,24,18,25],[16,27,16,32],[16,34,16,35],[17,3,17,14],[17,15,17,17],[17,18,17,20],[17,21,17,22],[17,24,17,25],[17,27,17,32],[17,34,17,35],[16,1,17,2],[16,3,16,14],[16,15,16,17],[16,18,16,20],[16,21,16,22],[16,24,16,25],[18,27,18,32],[18,34,18,35],[19,3,19,14],[15,15,15,17],[15,18,15,20],[15,21,15,22],[15,24,15,25],[15,27,15,32],[15,34,15,35],[13,33,13,36],[14,1,15,2],[14,3,14,14],[14,15,14,17],[14,18,14,20],[14,21,14,22],[14,24,14,25],[14,27,14,32],[14,34,14,35],[15,3,15,14],[13,1,13,2],[13,3,13,14],[13,15,13,20],[13,21,13,23],[13,24,13,26],[13,27,13,32],[8,1,9,5],[8,6,9,17],[8,18,9,23],[8,24,9,36],[10,1,11,5],[10,6,11,17],[10,18,11,23],[10,24,11,36],[2,1,3,36],[4,29,4,31],[4,33,4,35],[6,1,6,5],[6,6,7,17],[6,18,7,23],[6,24,7,36],[7,1,7,5]]}
[null,"佐賀県卓球協会 FAX ０９５２－９７－８０７８",null,null,null,null,null,null,null,null,null,null,null,null,null,null,null,null,null,null,null,null,null,"メールとFAXお願いします"]
[]
[null,"令和７年度　全日本卓球選手権大会［カデットの部］ダブルス県予選申込書"]
[]
[null,null,null,null,null,null,null,null,null,null,null,null,null,null,null,null,null,null,null,null,null,null,null,null,null,null,null,null,null,"男子",null,null,"・","女子",null,null,null,null,null,null,null,null,null,null,null,null,null,"中①"]
[null,null,null,null,null,null,null,null,null,null,null,null,null,null,null,null,null,null,null,null,null,null,null,null,null,null,null,null,null,null,null,null,null,null,null,null,null,null,null,null,null,null,null,null,null,null,null,"中②"]
[null,"学校名",null,null,null,null,null,null,null,null,null,null,null,null,null,null,null,null,"申込責任者氏名",null,null,null,null,null,null,null,null,null,null,null,null,null,null,null,null,null,null,null,null,null,null,null,null,null,null,null,null,"6年"]
[null,"チーム名",null,null,null,null,null,null,null,null,null,null,null,null,null,null,null,null,null,null,null,null,null,null,null,null,null,null,null,null,null,null,null,null,null,null,null,null,null,null,null,null,null,null,null,null,null,"5年"]
[null,"学校TEL",null,null,null,null,null,null,null,null,null,null,null,null,null,null,null,null,"申込責任者携帯TEL",null,null,null,null,null,null,null,null,null,null,null,null,null,null,null,null,null,null,null,null,null,null,null,null,null,null,null,null,"4年"]
[null,null,null,null,null,null,null,null,null,null,null,null,null,null,null,null,null,null,null,null,null,null,null,null,null,null,null,null,null,null,null,null,null,null,null,null,null,null,null,null,null,null,null,null,null,null,null,"小3年"]
[null,null,null,null,null,null,null,null,null,null,null,null,null,null,null,null,null,null,"主将氏名",null,null,null,null,null,null,null,null,null,null,null,null,null,null,null,null,null,null,null,null,null,null,null,null,null,null,null,null,"小2年"]
[null,null,null,null,null,null,null,null,null,null,null,null,null,null,null,null,null,null,null,null,null,null,null,null,null,null,null,null,null,null,null,null,null,null,null,null,null,null,null,null,null,null,null,null,null,null,null,"小1年"]
[]
[null,null,null,"選手名",null,null,null,null,null,null,null,null,null,null,null,"フリガナ",null,null,null,null,null,"学年",null,null,"年齢",null,null,"所属クラブ（※）",null,null,null,null,null,"備考"]
[null,"(1)",null,null,null,null,null,null,null,null,null,null,null,null,null,null,null,null,null,null,null,null,null,null,null,null,null,null,null,null,null,null,null,null,null,null,null,null,null,null,null,null,null,null,null,null,null,null,null,null,{"$f":"B15&D15&V15&D16&V16","v":"(1)"},{"$f":"AB15&\"・\"&AB16","v":"・"},{"$f":"\"(\"&$G$7&\")\"","v":"()"},{"$f":"\"(\"&AB15&AB16&\")\"","v":"()"}]
[null,null,null,null,null,null,null,null,null,null,null,null,null,null,null,null,null,null,null,null,null,null,null,null,null,null,null,null,null,null,null,null,null,null,null,null,null,null,null,null,null,null,null,null,null,null,null,null,null,null,{"$f":"B17&D17&V17&D18&V18","v":"(2)"},{"$f":"AB17&\"・\"&AB18","v":"・"},{"$f":"\"(\"&$G$7&\")\"","v":"()"},{"$f":"\"(\"&AB17&AB18&\")\"","v":"()"}]
[null,"(2)",null,null,null,null,null,null,null,null,null,null,null,null,null,null,null,null,null,null,null,null,null,null,null,null,null,null,null,null,null,null,null,null,null,null,null,null,null,null,null,null,null,null,null,null,null,null,null,null,{"$f":"B19&D19&V19&D20&V20","v":"(3)"},{"$f":"AB19&\"・\"&AB20","v":"・"},{"$f":"\"(\"&$G$7&\")\"","v":"()"},{"$f":"\"(\"&AB19&AB20&\")\"","v":"()"}]
[null,null,null,null,null,null,null,null,null,null,null,null,null,null,null,null,null,null,null,null,null,null,null,null,null,null,null,null,null,null,null,null,null,null,null,null,null,null,null,null,null,null,null,null,null,null,null,null,null,null,{"$f":"B21&D21&V21&D22&V22","v":"(4)"},{"$f":"AB21&\"・\"&AB22","v":"・"},"()",{"$f":"\"(\"&AB21&AB22&\")\"","v":"()"}]
[null,"(3)",null,null,null,null,null,null,null,null,null,null,null,null,null,null,null,null,null,null,null,null,null,null,null,null,null,null,null,null,null,null,null,null,null,null,null,null,null,null,null,null,null,null,null,null,null,null,null,null,{"$f":"B23&D23&V23&D24&V24","v":"(5)"},{"$f":"AB23&\"・\"&AB24","v":"・"},"()",{"$f":"\"(\"&AB23&AB24&\")\"","v":"()"}]
[null,null,null,null,null,null,null,null,null,null,null,null,null,null,null,null,null,null,null,null,null,null,null,null,null,null,null,null,null,null,null,null,null,null,null,null,null,null,null,null,null,null,null,null,null,null,null,null,null,null,{"$f":"B25&D25&V25&D26&V26","v":"(6)"},{"$f":"AB25&\"・\"&AB26","v":"・"},"()",{"$f":"\"(\"&AB25&AB26&\")\"","v":"()"}]
[null,"(4)"]
[]
[null,"(5)"]
[]
[null,"(6)"]
[]
[null,"※強い順に記入して下さい。",null,null,null,null,null,null,null,null,null,null,null,null,null,null,null,null,null,null,null,null,"申込み締切",null,null,null,null,null,"８月７日（木曜日）必着"]
[]
[null,null,"※本申込書に記載された個人情報は本大会の関係資料への記載、諸連絡に利用します。"]
[null,null,"　　ご了承ください。"]
[null,null,"※記載を希望されない方は、備考欄に×を付けてください。"]
[null,null,null,"表中※は、他チーム所属の選手とペアを組んだ場合のみ他チーム選手の所属チーム名を必ず記入して下さい。"]
[]
[null,null,"令和",null,null,null,"年",null,null,"月",null,null,"日"]
[null,null,null,null,null,null,null,null,null,null,null,null,null,"中学校"]
[null,null,null,null,null,null,null,null,null,null,null,null,null,"（チーム名）",null,null,null,"申込責任者"]
[null,null,null,null,null,null,null,null,null,null,null,null,null,null,null,null,null,"校長名"]
[null,null,null,null,null,null,null,null,null,null,null,null,null,null,null,null,null,"（チーム代表者名）",null,null,null,null,null,null,null,null,null,null,null,null,null,null,null,null,"印"]